Cogmind - Beta 13 @@@ ROGUE MODE // 2024.04.14 @ 01:07:41 Player: Darby Result: Destroyed by as-10219 with Assembled Blade Performance ------------- Evolutions (0) 0 Regions Visited (4) 800 Robots Destroyed (27) 135 Value Destroyed (497) 497 Prototype IDs (37) 740 Alien Tech Used (0) 0 Bonus (300) 300 TOTAL SCORE: 2472 Bonus ------- Aligned with FarCom 300 Cogmind --------- Core Integrity 0/250 Matter 200/300 Energy 85/100 System Corruption 9% Temperature Cool (20) Movement Walking (120) Location -9/Mines Parts ------- > --- POWER (1) -------- (None) > --- PROPULSION (2) --- Aluminum Leg > --- UTILITY (2) ------ (None) > --- WEAPON (2) ------- (None) > --- INVENTORY (5) ---- Sensor Array Signal Interpreter Terrain Scanner Medium Laser Mining Laser Peak State ------------ > --- POWER ------------ Light Nuclear Core > --- PROPULSION ------- Wheel Compact Wheel > --- UTILITY ---------- Huge Storage Unit Cloak of Protection > --- WEAPON ----------- Datajack > --- INVENTORY -------- Aluminum Leg Aluminum Leg Wheel Medium Storage Unit Large Storage Unit Structural Scanner Visual Processing Unit Visual Processing Unit Sensor Array Sensor Array Signal Interpreter Terrain Scanner Improved Terrain Scanner Terrain Scan Processor Seismic Detector Core Shielding Propulsion Shielding Medium Laser Small Laser Beam Cannon Mining Laser [Rating: 17] Favorites ----------- Power Light Nuclear Core Engine Light Ion Engine Power Core Light Nuclear Core Propulsion Light Treads Treads Light Treads Leg Aluminum Leg Wheel Wheel Utility Huge Storage Unit Device Seismic Detector Storage Huge Storage Unit Protection Core Shielding Weapon Small Laser Energy Gun Small Laser Energy Cannon Beam Cannon Ballistic Gun Light Assault Rifle Special Weapon Mining Laser Special Melee Weapon Datajack Build | -11 -10 -10 -10 -9 ------- Run | Yrd Mat Min Exi Min Slots Evolved . | . . . . . Power . | . . . . . Propulsion . | . . . . . Utility . | . . . . . Weapon . | . . . . . Parts Attached 40 | 7 14 15 2 2 Power 3 | 1 1 1 . . Engine 1 | 1 . . . . Core 2 | . 1 1 . . Reactor . | . . . . . Propulsion 16 | 2 4 9 . 1 Treads 4 | . 3 1 . . Leg 7 | 2 1 3 . 1 Wheel 5 | . . 5 . . Hover . | . . . . . Flight . | . . . . . Utility 12 | 2 6 2 1 1 Device 6 | 2 1 1 1 1 Storage 2 | . 2 . . . Processor . | . . . . . Hackware . | . . . . . Protection 4 | . 3 1 . . Artifact . | . . . . . Weapon 9 | 2 3 3 1 . Energy Gun 5 | 1 1 3 . . Energy Cannon 1 | . 1 . . . Ballistic Gun 1 | 1 . . . . Ballistic Cannon . | . . . . . Launcher . | . . . . . Special Weapon 1 | . 1 . . . Impact Weapon . | . . . . . Slashing Weapon . | . . . . . Piercing Weapon . | . . . . . Special Melee Weapon 1 | . . . 1 . Unidentified Prototypes . | . . . . . Parts Lost 11 | . 4 6 . 1 Power 2 | . 1 1 . . Propulsion 4 | . 1 2 . 1 Utility 2 | . 1 1 . . Weapon 3 | . 1 2 . . Highest Loss Streak 3 | . 2 3 . 1 To Critical Strikes . | . . . . . Average Slot Usage (%) 95 | . 99 96 84 . Engine 5 | . 8 . . . Core 8 | . 5 13 14 . Treads 10 | . 15 7 . . Leg 7 | . 12 1 . . Wheel 9 | . . 18 28 . Device 8 | . 8 2 14 . Storage 13 | . 13 14 14 . Protection 5 | . 6 10 . . Energy Gun 11 | . 13 22 . . Energy Cannon 4 | . 5 5 . . Ballistic Gun 5 | . 8 . . . Special Melee Weapon 3 | . . . 13 . Naked Turns 1 | . . . . 1 Heaviest Build 94 | 7 93 93 94 94 Greatest Support 40 | 20 40 40 26 26 Greatest Overweight (x) 8 | . 8 8 3 5 Average Overweight (x) 2 | . 1 3 3 4 Largest Inventory Capacity 25 | 5 25 25 25 25 Average Capacity 21 | 5 19 25 25 19 Most Carried 23 | 5 23 23 21 21 Average Carried 15 | 2 12 20 20 16 Final Capacity 25 | 5 25 25 25 5 Final Carried 23 | 5 23 19 21 5 Class Distribution -------------------- 100% | Mutant Dominant Class ---------------- Mutant | -10/Materials Mutant | -10/Mines Mutant | -10/Exiles Mutant | -9/Mines Resources | -11 -10 -10 -10 -9 ----------- Run | Yrd Mat Min Exi Min Matter Collected 675 | 276 209 190 . . Remotely . | . . . . . Salvage Created 999 | 72 739 188 . . Parts 72 | 6 57 9 . . Haulers Intercepted 2 | . 2 . . . Recyclers Shooed 2 | . 2 . . . Parts Field Recycled . | . . . . . Retrieved Matter . | . . . . . Parts Self-Destructed . | . . . . . Prevented . | . . . . . Kills | -11 -10 -10 -10 -9 ------- Run | Yrd Mat Min Exi Min Combat Hostiles Destroyed 9 | 1 5 3 . . Guns 7 | 1 5 1 . . Cannons 1 | . . 1 . . Classes Destroyed 9 | 2 7 . . . Worker 2 | . 2 . . . Builder 2 | . 2 . . . Tunneler 4 | 1 1 2 . . Hauler 2 | . 2 . . . Recycler 3 | . 3 . . . Mechanic 1 | . 1 . . . Operator 2 | . 2 . . . Watcher 2 | . 2 . . . Grunt 9 | 1 5 3 . . Best Kill Streak 4 | 2 4 2 . . Combat Bots Only 1 | 1 1 1 . . Max Kills in Single Turn 1 | 1 1 1 . . Gunslinging . | . . . . . Exploded . | . . . . . Melee . | . . . . . Uniques/NPCs Destroyed . | . . . . . Combat | -11 -10 -10 -10 -9 -------- Run | Yrd Mat Min Exi Min Hostile Shots Fired 136 | 4 42 75 . 15 Missed 32 | . 12 16 . 4 Damage Taken 1394 | 41 420 699 . 234 Core 269 | 10 58 79 . 122 Absorbed by Shields . | . . . . . Redirected to Shielding 4 | . 4 . . . Core Remaining (%) 96 | 96 . . . . Volleys Fired 108 | 6 75 27 . . Largest 2 | 2 2 2 . . Hottest 115 | 60 110 115 . . Shots Fired 214 | 12 148 54 . . Gun 187 | 12 137 38 . . Cannon 26 | . 10 16 . . Launcher . | . . . . . Special 1 | . 1 . . . Kinetic 72 | 6 66 . . . Thermal 142 | 6 82 54 . . Explosive . | . . . . . Electromagnetic . | . . . . . Robot Hit Streak 14 | 3 14 9 . . Robot Miss Streak 7 | 2 6 7 . . Penetration Max . | . . . . . Secondary Targets 1 | . 1 . . . Max Gunslinging Chain 1 | . 1 . . . Shots Hit Robots 145 | 6 90 36 13 . Core Hits 53 | 3 41 8 . 1 Critical Kills 1 | . . 1 . . Critical Parts Destroyed . | . . . . . Critical Strikes 2 | . . 2 . . Burn 1 | . . 1 . . Meltdown 1 | . . 1 . . Melee Attacks 13 | . . . 13 . Impact . | . . . . . Slashing . | . . . . . Piercing . | . . . . . Sneak Attacks 12 | . . . 12 . Combat Hostiles . | . . . . . Follow-up Attacks . | . . . . . Damage Inflicted 1529 | 57 924 543 . 5 Guns 1256 | 57 873 326 . . Cannons 264 | . 51 213 . . Explosions . | . . . . . Melee . | . . . . . Ramming 9 | . . 4 . 5 Kinetic 365 | 22 343 . . . Thermal 1155 | 35 581 539 . . Explosive . | . . . . . Electromagnetic . | . . . . . Impact . | . . . . . Slashing . | . . . . . Piercing . | . . . . . Highest Corruption 9 | . 8 8 8 9 Average Corruption 7 | . 6 8 8 8 Corruption Purged . | . . . . . Corruption Blocked . | . . . . . Effects 79 | . 40 16 23 . Message Errors 23 | . 10 4 9 . Matter Fused 19 | . 13 1 5 . Heat Flow Errors 14 | . 9 4 1 . Energy Discharges 5 | . 1 2 2 . Parts Rejected 1 | . . 1 . . Parts Fused 1 | . . . 1 . Data Loss (minor) 3 | . 1 1 1 . Data Loss (major) 9 | . 4 1 4 . Misfires 3 | . 2 1 . . Weapon Failures 1 | . . 1 . . Overload Shots . | . . . . . Overflow Damage . | . . . . . Projectiles . | . . . . . Explosions . | . . . . . Melee . | . . . . . Knockbacks . | . . . . . Impact . | . . . . . Kinetic . | . . . . . Secondary . | . . . . . Self-Inflicted Damage 2 | . . . . 2 Shots . | . . . . . Rammed 2 | . . 1 . 1 Targets Rammed 5 | . . 4 . 1 Kicked 3 | . . 3 . . Crushed . | . . . . . Highest Temperature 528 | 44 250 528 171 . Average Temperature 131 | 22 65 233 90 . Received Heat Transfer 700 | 24 252 384 . 40 Effects 17 | . 2 15 . . Shutdowns 5 | . . 5 . . Energy Bleed 1 | . . 1 . . Interference 7 | . 2 5 . . Matter Decay 1 | . . 1 . . Short Circuit 1 | . . 1 . . Damage (major) 2 | . . 2 . . Siege Activations . | . . . . . Robots Corrupted . | . . . . . Combat Hostiles . | . . . . . Parts Fried . | . . . . . Impact Corruptions . | . . . . . Robots Melted 1 | . . 1 . . Combat Hostiles 1 | . . 1 . . Parts Melted 2 | . 1 1 . . Heat Transferred 2756 | 75 1286 1395 . . Parts Sabotaged . | . . . . . Parts Stolen . | . . . . . Parts Stripped . | . . . . . Power Chain Reactions . | . . . . . Alert | -11 -10 -10 -10 -9 ------- Run | Yrd Mat Min Exi Min Peak Influence 113 | 25 113 42 . . Initial 16 | . 16 7 . . Average 26 | 8 27 30 . . Maximum Alert Level . | . . . . . Low Security (%) 100 | 100 100 100 . 100 Level 1 . | . . . . . Level 2 . | . . . . . Level 3 . | . . . . . Level 4 . | . . . . . Level 5 . | . . . . . High Security . | . . . . . Max Security . | . . . . . Squads Dispatched 2 | . 2 . . . Investigation . | . . . . . Extermination . | . . . . . Reinforcement 2 | . 2 . . . Assault . | . . . . . Garrison . | . . . . . Intercept . | . . . . . Searches Triggered . | . . . . . Construction Impeded . | . . . . . Haulers Reinforced . | . . . . . Active Scanning Responses . | . . . . . Cargo Convoy Interrupts . | . . . . . Stealth | -11 -10 -10 -10 -9 --------- Run | Yrd Mat Min Exi Min Distress Signals 1 | . 1 . . . Communications Jammed . | . . . . . Distress Signals . | . . . . . Times Spotted 42 | 1 17 4 . 20 Peak Tracking Total 20 | 1 2 2 . 20 Tactical Retreats . | . . . . . Traps | -11 -10 -10 -10 -9 ------- Run | Yrd Mat Min Exi Min Traps Triggered 5 | . 5 . . . Indirectly . | . . . . . Trap Hack Attempts . | . . . . . Triggered . | . . . . . Disarmed . | . . . . . Reprogrammed . | . . . . . Reused . | . . . . . Traps Extracted . | . . . . . Installed . | . . . . . Triggered . | . . . . . Machines | -11 -10 -10 -10 -9 ---------- Run | Yrd Mat Min Exi Min Machines Disabled . | . . . . . Max in Single Turn . | . . . . . Machines Repaired . | . . . . . Machines Dismantled . | . . . . . Machines Sabotaged . | . . . . . Overloaded Fab Kills . | . . . . . Hacking | -11 -10 -10 -10 -9 --------- Run | Yrd Mat Min Exi Min Machines Accessed 11 | . 6 . 5 . Terminals 5 | . 5 . . . Fabricators . | . . . . . Repair Stations . | . . . . . Recycling Units 1 | . 1 . . . Scanalyzers . | . . . . . Garrison Access . | . . . . . Total Hacks 72 | . 22 . 50 . Successful 60 | . 10 . 50 . Failed 11 | . 11 . . . Catastrophic 1 | . 1 . . . Database Lockouts 1 | . 1 . . . Manual 11 | . 10 . 1 . Terminals 18 | . 18 . . . Fabricators . | . . . . . Repair Stations . | . . . . . Recycling Units 4 | . 4 . . . Scanalyzers . | . . . . . Garrison Access . | . . . . . Terminal Hacks 59 | . 9 . 50 . Record 52 | . 3 . 49 . Robot Analysis 1 | . 1 . . . Branch Access Points 1 | . 1 . . . Terminal Index 1 | . 1 . . . Dispatch Records 2 | . 2 . . . Zone Layout 1 | . 1 . . . Derelict Proto ID Bank 1 | . . . 1 . Fabricator Hacks . | . . . . . Repair Station Hacks . | . . . . . Recycling Unit Hacks . | . . . . . Scanalyzer . | . . . . . Garrison Access Hacks . | . . . . . Unauthorized Hacks 1 | . 1 . . . Terminals 1 | . 1 . . . Botnet 1 | . 1 . . . Fabricators . | . . . . . Repair Stations . | . . . . . Recycling Units . | . . . . . Scanalyzers . | . . . . . Garrison Access . | . . . . . Data Cores Recovered . | . . . . . Used . | . . . . . Hacking Detections 6 | . 6 . . . Full Trace Events 2 | . 2 . . . Feedback Events . | . . . . . Feedback Blocked . | . . . . . Robot Schematics Acquired . | . . . . . Robots Built . | . . . . . Authchips . | . . . . . Time . | . . . . . Total Robot Build Rating . | . . . . . Part Schematics Acquired . | . . . . . Parts Built . | . . . . . Authchips . | . . . . . Time . | . . . . . Total Part Build Rating . | . . . . . Parts Repaired . | . . . . . Time . | . . . . . Parts Recycled . | . . . . . Recycled Matter . | . . . . . Retrieved Matter . | . . . . . Retrieved Components . | . . . . . Parts Scanalyzed . | . . . . . Part Schematics Acquired . | . . . . . Parts Damaged . | . . . . . Bothacking | -11 -10 -10 -10 -9 ------------ Run | Yrd Mat Min Exi Min Used RIF Installer . | . . . . . Robots Hacked 11 | . . . 11 . Non-combat 3 | . . . 3 . Combat 8 | . . . 8 . Robot Hacks Applied 11 | . . . 11 . parse_system 11 | . . . 11 . Relay Couplers Released . | . . . . . Fabnet Peak Effective % . | . . . . . Robots Rewired . | . . . . . Allies Hacked . | . . . . . Hacks Repelled . | . . . . . Allies | -11 -10 -10 -10 -9 -------- Run | Yrd Mat Min Exi Min Total Allies . | . . . . . Largest Group . | . . . . . Highest-Rated Group . | . . . . . Highest-Rated Ally . | . . . . . Total Orders . | . . . . . Ally Attacks . | . . . . . Total Damage . | . . . . . Kills . | . . . . . Allies Corrupted . | . . . . . Allies Melted . | . . . . . Intel | -11 -10 -10 -10 -9 ------- Run | Yrd Mat Min Exi Min Robot Analysis Total 1 | . 1 . . . Derelict Logs Recovered . | . . . . . Drone Launches . | . . . . . Drone Recoveries . | . . . . . Exploration | -11 -10 -10 -10 -9 ------------- Run | Yrd Mat Min Exi Min Turns Passed 2900 | 108 1692 426 667 7 Spaces Moved 1296 | 70 581 166 477 2 Core 14 | 13 1 . . . Treads 277 | . 267 10 . . Legs 370 | 57 313 . . . Wheels 635 | . . 156 477 2 Hover . | . . . . . Flight . | . . . . . Fastest Speed 50 | 50 120 135 135 135 Average Speed 182 | 107 239 152 135 155 Slowest Speed 480 | 120 450 480 135 175 Overloaded Moves . | . . . . . Propulsion Burnouts . | . . . . . Robots Hopped . | . . . . . Cave-ins Triggered . | . . . . . Exploration Rate (%) 46 | 6 81 51 92 3 Regions Visited 4 Branch Regions 3 Pre-discovered Areas 1 | . . . 1 . Known Exits Taken 1 | . 1 . . . Unknown Exits Taken 3 | 1 . 1 1 . Scrap Searched 1 | . . 1 . . Spaces Dug 1 | . 1 . . . Terrain Destroyed 1 | . 1 . . . Melee . | . . . . . Projectile 1 | . 1 . . . AOE . | . . . . . Terrain Rammed . | . . . . . Walls Destroyed . | . . . . . Machines Disabled . | . . . . . Actions | -11 -10 -10 -10 -9 --------- Run | Yrd Mat Min Exi Min Total 1590 | 89 744 258 494 5 Wait 99 | 2 51 46 . . Move 1292 | 69 580 165 476 2 Hop . | . . . . . Pick Up 26 | 5 19 1 1 . Fast Attach 14 | 7 4 2 . 1 Attach 10 | . 4 5 1 . Detach 5 | . 3 . 2 . Swap 16 | . 6 8 1 1 Drop 2 | . 2 . . . Fire 108 | 6 75 27 . . Melee 13 | . . . 13 . Ram 1 | . . . . 1 Kick 3 | . . 3 . . Crush 1 | . . 1 . . Escape Stasis . | . . . . . Rewire . | . . . . . Trap . | . . . . . Miscellaneous . | . . . . . Route ------- -11/Scrapyard -10/Materials (discovered 3 exits: [*Mat x2] / *Min) -10/Mines (discovered 3 exits: [*Mat x2] / *Exi) -10/Exiles -9/Mines History --------- Turn | Location | Event 2 | -11/Scrapyard | Met Revision 17 58 | -11/Scrapyard | Discovered new exit (range 8) 109 | -11/Scrapyard | Entered Materials 300 | -10/Materials | Build established: Mutant 497 | -10/Materials | Discovered new exit (range 7) 656 | -10/Materials | Central database locked down 901 | -10/Materials | Identified exit to Mines 957 | -10/Materials | Discovered new exit (range 9) 1801 | -10/Materials | Entered Mines 1883 | -10/Mines | Core integrity fell below 50% 1951 | -10/Mines | Lost 3 parts (1p2n) 1996 | -10/Mines | Discovered new exit (range 8) 2040 | -10/Mines | Lost 3 parts (1u2w) 2177 | -10/Mines | Discovered new exit (range 11) 2221 | -10/Mines | Deemed a non-threat by the Exiles lab entrance 2221 | -10/Mines | Discovered new exit (range 5) 2227 | -10/Mines | Entered Exiles 2260 | -10/Exiles | Met 8R-AWN 2284 | -10/Exiles | Met EX-HEX 2385 | -10/Exiles | Met EX-DEC 2434 | -10/Exiles | Visited The Gauntlet 2616 | -10/Exiles | Learned location of Zion (-7) 2640 | -10/Exiles | Met EX-BIN 2663 | -10/Exiles | Aligned with FarCom system 2665 | -10/Exiles | Given EX-Vault access code 2717 | -10/Exiles | Opened EX-Vault 2727 | -10/Exiles | Found Cloak of Protection 2758 | -10/Exiles | Warned to stay clear of 0b10 Research branches 2882 | -10/Exiles | Discovered new exit (range 10) 2894 | -10/Exiles | Left Exiles lab with Cloak of Protection 2894 | -10/Exiles | Entered Mines 2895 | -9/Mines | Assembled infested the area 2899 | -9/Mines | Released all parts (5) 2901 | -9/Mines | Core integrity fell below 20% 2901 | -9/Mines | Destroyed by as-10219 with Assembled Blade Last Messages --------------- 02872_ WLGM3O/|M4AZWIW:LNUIQ 02882_ EXIT=FOUND 02887_ VR